lending/lending_fUSD_20260124
["ID","MTS","AMOUNT","RATE_DAILY","PERIOD"]
[403158504,1769215841023,-500.0,0.00015306,2]
[403158506,1769215841032,-157.15309479,0.00015306,2]
[403158508,1769215841042,-500.0,0.00015306,2]
[403158510,1769215841050,-243.27837996,0.00015306,2]
[403158512,1769215841060,-211.70201985,0.00015311,2]
[403158514,1769215841069,-299.37435585,0.00015311,2]
[403158516,1769215841078,-500.0,0.00015325,2]
[403158518,1769215841087,-500.0,0.00015325,2]
[403158520,1769215841096,-500.0,0.00015325,2]
[403158522,1769215841104,-161.0,0.00015347,2]
[403158524,1769215841114,-1961.0,0.00015358,2]
[403158525,1769215841123,-576.0,0.0001536,2]
[403158527,1769215841132,-500.0,0.0001536,2]
[403158530,1769215841141,-500.0,0.0001536,2]
[403158532,1769215841150,-500.0,0.0001536,2]
[403158533,1769215841160,-1000.0,0.0001537,2]
[403158536,1769215841170,-370.0,0.0001537,2]
[403158538,1769215841184,-1357.098,0.00015371,2]
[403158540,1769215841194,-178.659,0.00015371,2]
[403158546,1769215841452,-1381.88,0.00015371,2]
[403158547,1769215841475,-8761.21,0.00015371,2]
[403158548,1769215841484,-9999.99,0.00015371,2]
[403158549,1769215841494,-150.99,0.00015371,2]
[403158550,1769215841503,-341.05,0.00015371,2]
[403158551,1769215841512,-999.99,0.00015371,2]
[403158552,1769215841522,-1195.39,0.00015371,2]
[403158553,1769215841532,-2110.06,0.00015371,2]
[403158554,1769215841541,-500.0,0.0001538,2]
[403158555,1769215841550,-500.0,0.0001538,2]
[403158556,1769215841559,-500.0,0.0001538,2]
[403158557,1769215841569,-10000.01,0.00015388,2]
[403158558,1769215841579,-1000.0,0.00015388,2]
[403158559,1769215841588,-863.0,0.00015388,2]
[403158560,1769215841598,-576.0,0.00015415,2]
[403158561,1769215841607,-500.0,0.00015415,2]
[403158562,1769215841615,-500.0,0.00015415,2]
[403158563,1769215841624,-500.0,0.00015415,2]
[403158564,1769215841634,-500.0,0.00015434,2]
[403158565,1769215841646,-316.25,0.00015458,2]
[403158566,1769215841656,-847.23,0.00015461,2]
[403158567,1769215841666,-576.0,0.0001547,2]
[403158568,1769215841676,-500.0,0.0001547,2]
[403158569,1769215841686,-500.0,0.0001547,2]
[403158570,1769215841697,-500.0,0.0001547,2]
[403158571,1769215841706,-19363.69481108,0.00015482,2]
[403158572,1769215841719,-500.0,0.00015487,2]
[403158573,1769215841729,-500.0,0.00015487,2]
[403158574,1769215841738,-449.86533864,0.00015487,2]
[403158575,1769215841747,-500.0,0.00015487,2]
[403158576,1769215841756,-500.0,0.00015487,2]
[403158577,1769215841765,-500.0,0.00015487,2]
[403158578,1769215841775,-500.0,0.00015487,2]
[403158579,1769215841786,-500.0,0.00015487,2]
[403158580,1769215841795,-500.0,0.00015487,2]
[403158581,1769215841806,-500.0,0.00015487,2]
[403158582,1769215841815,-500.0,0.00015487,2]
[403158583,1769215841825,-500.0,0.00015489,2]
[403158584,1769215841834,-576.0,0.00015525,2]
[403158585,1769215841844,-500.0,0.00015525,2]
[403158586,1769215841853,-500.0,0.00015525,2]
[403158587,1769215841863,-500.0,0.00015525,2]
[403158588,1769215841872,-500.0,0.00015544,2]
[403158589,1769215841882,-150.0,0.00015545,2]
[403158590,1769215841891,-10130.07641326,0.00015578,2]
[403158591,1769215841900,-576.0,0.0001558,2]
[403158592,1769215841910,-527.36277185,0.0001558,2]
[403158593,1769215841921,-150.0,0.0001558,2]
[403158594,1769215841931,-500.0,0.0001558,2]
[403158595,1769215841940,-500.0,0.00015599,2]
[403158596,1769215841949,-233.41,0.00015621,2]
[403158597,1769215841960,-576.0,0.00015634,2]
[403158598,1769215841969,-500.0,0.00015634,2]
[403158599,1769215841980,-500.0,0.00015654,2]
[403158600,1769215841990,-576.0,0.00015689,2]
[403158601,1769215841999,-500.0,0.00015689,2]
[403158602,1769215842009,-500.0,0.00015708,2]
[403158603,1769215842019,-222.57709506,0.00015723,2]
[403158604,1769215842029,-847.23,0.00015735,2]
[403158605,1769215842038,-576.0,0.00015744,2]
[403158606,1769215842049,-500.0,0.00015744,2]
[403158607,1769215842058,-500.0,0.00015763,2]
[403158608,1769215842067,-576.0,0.00015799,2]
[403158609,1769215842077,-500.0,0.00015799,2]
[403158610,1769215842086,-615.01555266,0.00015818,2]
[403158611,1769215842095,-282.60461631,0.00015835,2]
[403158613,1769215842105,-576.0,0.00015854,2]
[403158614,1769215842114,-500.0,0.00015854,2]
[403158615,1769215842124,-10130.07641326,0.00015868,2]
[403158616,1769215842133,-150.19165791,0.00015885,2]
[403158617,1769215842143,-250.0,0.00015885,2]
[403158618,1769215842152,-195.0,0.00015885,2]
[403158619,1769215842162,-306.72288047,0.00015885,2]
[403158620,1769215842171,-576.0,0.00015908,2]
[403158621,1769215842185,-500.0,0.00015908,2]
[403158622,1769215842194,-576.0,0.00015963,2]
[403158623,1769215842203,-500.0,0.00015963,2]
[403158624,1769215842214,-847.23,0.00016009,2]
[403158625,1769215842223,-576.0,0.00016018,2]
[403158626,1769215842232,-500.0,0.00016018,2]
[403158627,1769215842241,-576.0,0.00016073,2]
[403158628,1769215842251,-500.0,0.00016073,2]
[403158629,1769215842260,-576.0,0.00016128,2]
[403158630,1769215842269,-500.0,0.00016128,2]
[403158631,1769215842278,-222.57709506,0.00016159,2]
[403158632,1769215842287,-10130.07641326,0.00016159,2]
[403158633,1769215842297,-576.0,0.00016182,2]
[403158634,1769215842306,-233.55062828,0.00016182,2]
[403158635,1769215842316,-576.0,0.00016237,2]
[403158636,1769215842325,-847.23,0.00016283,2]
[403158637,1769215842334,-332.74911525,0.00016292,2]
[403158639,1769215842366,-243.25088475,0.00016292,2]
[403158641,1769215842375,-576.0,0.00016347,2]
[403158642,1769215842384,-576.0,0.00016401,2]
[403158643,1769215842394,-193.80844694,0.00016438,2]
[403158644,1769215842403,-500.0,0.00016438,2]
[403158646,1769215842414,-500.0,0.00016438,2]
[403158648,1769215842423,-500.0,0.00016438,2]
[403158650,1769215842433,-500.0,0.00016438,2]
[403158652,1769215842442,-325.24154144,0.00016438,2]
[403158654,1769215842451,-500.0,0.00016438,2]
[403158656,1769215842459,-500.0,0.00016438,2]
[403158657,1769215842469,-151.0,0.00016438,2]
[403158658,1769215842477,-10130.07641326,0.00016449,2]
[403158659,1769215842487,-592.397278,0.00016456,2]
[403158660,1769215842496,-847.23,0.00016557,2]
[403158661,1769215842506,-222.57709506,0.00016594,2]
[403158662,1769215842516,-1265.0,0.00016652,2]
[403158663,1769215842526,-1000.0,0.00016684,2]
[403158664,1769215842537,-1680.0,0.00016701,2]
[403158665,1769215842547,-10130.07641326,0.00016739,2]
[403158666,1769215842556,-502.0,0.00016767,2]
[403158667,1769215842566,-200.0,0.00016792,2]
[403158668,1769215842575,-708.99557112,0.000168,2]
[403158669,1769215842586,-295.57442888,0.000168,2]
[403158670,1769215842595,-153.92057112,0.00016831,2]
[403158671,1769215842688,-693.30942888,0.00016831,2]
[403158672,1769215842697,-500.0,0.00017,7]
[403158673,1769215842706,-500.0,0.00017,7]
[403158674,1769215842716,-500.0,0.00017,7]
[403158675,1769215842725,-544.89,0.00017,7]
[403158676,1769215842735,-222.57709506,0.00017029,2]
[403158677,1769215842745,-10130.07641326,0.00017029,2]
[403158678,1769215842757,-845.0,0.0001704,2]
[403158679,1769215842768,-836.0,0.0001704,2]
[403158680,1769215842777,-174.61919141,0.00017099,2]
[403158681,1769215842787,-2468.0,0.00017099,2]
[403158682,1769215842797,-500.0,0.00017099,2]
[403158683,1769215842807,-500.0,0.00017099,2]
[403158684,1769215842817,-500.0,0.00017099,2]
[403158685,1769215842826,-500.0,0.00017099,2]
[403158686,1769215842838,-500.0,0.00017099,2]
[403158687,1769215842848,-578.20924308,0.00017099,2]
[403158688,1769215842858,-500.0,0.00017099,2]
[403158689,1769215842868,-500.0,0.00017099,2]
[403158690,1769215842877,-500.0,0.00017099,2]
[403158691,1769215842887,-854.2589148,0.00017099,2]
[403158692,1769215842898,-500.0,0.00017099,2]
[403158693,1769215842908,-500.0,0.00017099,2]
[403158694,1769215842919,-500.0,0.00017099,2]
[403158695,1769215842928,-209.40437684,0.00017099,2]
[403158696,1769215842937,-250.0,0.00017099,2]
[403158697,1769215842947,-250.0,0.00017099,2]
[403158698,1769215842958,-250.0,0.00017099,2]
[403158699,1769215842967,-250.0,0.00017099,2]
[403158700,1769215842978,-250.0,0.00017099,2]
[403158701,1769215842987,-250.0,0.00017099,2]
[403158702,1769215842996,-250.0,0.00017099,2]
[403158703,1769215843006,-250.0,0.00017099,2]
[403158704,1769215843015,-250.0,0.00017099,2]
[403158705,1769215843024,-250.0,0.00017099,2]
[403158706,1769215843034,-500.0,0.00017099,2]
[403158707,1769215843043,-250.0,0.00017099,2]
[403158709,1769215843053,-250.0,0.00017099,2]
[403158710,1769215843063,-250.0,0.00017099,2]
[403158711,1769215843072,-250.0,0.00017099,2]
[403158712,1769215843082,-250.0,0.00017099,2]
[403158713,1769215843091,-250.0,0.00017099,2]
[403158714,1769215843101,-250.0,0.00017099,2]
[403158715,1769215843111,-250.0,0.00017099,2]
[403158716,1769215843120,-250.0,0.00017099,2]
[403158717,1769215843130,-250.0,0.00017099,2]
[403158718,1769215843140,-322.6107,0.00017099,2]
[403158719,1769215843150,-250.0,0.00017099,2]
[403158720,1769215843160,-250.0,0.00017099,2]
[403158721,1769215843169,-250.0,0.00017099,2]
[403158722,1769215843182,-250.0,0.00017099,2]
[403158723,1769215843192,-151.0,0.00017099,2]
[403158724,1769215843201,-250.0,0.00017099,2]
[403158725,1769215843211,-151.0,0.00017099,2]
[403158726,1769215843222,-500.0,0.00017099,2]
[403158727,1769215843233,-250.0,0.00017099,2]
[403158728,1769215843242,-151.0,0.00017099,2]
[403158729,1769215843254,-500.0,0.00017099,2]
[403158730,1769215843263,-250.0,0.00017099,2]
[403158731,1769215843273,-151.0,0.00017099,2]
[403158732,1769215843282,-500.0,0.00017099,2]
[403158733,1769215843291,-250.0,0.00017099,2]
[403158734,1769215843301,-151.0,0.00017099,2]
[403158735,1769215843312,-500.0,0.00017099,2]
[403158736,1769215843323,-151.0,0.00017099,2]
[403158737,1769215843332,-250.0,0.00017099,2]
[403158738,1769215843342,-500.0,0.00017099,2]
[403158739,1769215843351,-250.0,0.00017099,2]
[403158740,1769215843361,-151.0,0.00017099,2]
[403158741,1769215843370,-500.0,0.00017099,2]
[403158742,1769215843380,-250.0,0.00017099,2]
[403158743,1769215843389,-151.0,0.00017099,2]
[403158744,1769215843399,-500.0,0.00017099,2]
[403158745,1769215843408,-250.0,0.00017099,2]
[403158746,1769215843417,-250.0,0.00017099,2]
[403158747,1769215843426,-500.0,0.00017099,2]
[403158748,1769215843436,-250.0,0.00017099,2]
[403158749,1769215843448,-151.0,0.00017099,2]
[403158750,1769215843457,-250.0,0.00017099,2]
[403158751,1769215843467,-500.0,0.00017099,2]
[403158752,1769215843476,-151.0,0.00017099,2]
[403158753,1769215843485,-250.0,0.00017099,2]
[403158754,1769215843498,-500.0,0.00017099,2]
[403158755,1769215843507,-151.0,0.00017099,2]
[403158756,1769215843517,-250.0,0.00017099,2]
[403158757,1769215843526,-500.0,0.00017099,2]
[403158758,1769215843535,-250.0,0.00017099,2]
[403158759,1769215843544,-250.0,0.00017099,2]
[403158760,1769215843553,-250.0,0.00017099,2]
[403158761,1769215843562,-250.0,0.00017099,2]
[403158762,1769215843571,-250.0,0.00017099,2]
[403158763,1769215843580,-391.18071828,0.00017099,2]
[403158764,1769215843590,-500.0,0.00017099,2]
[403158765,1769215843599,-500.0,0.00017099,2]
[403158766,1769215843608,-500.0,0.00017099,2]
[403158767,1769215843617,-500.0,0.00017099,2]
[403158768,1769215843627,-500.0,0.00017099,2]
[403158769,1769215843636,-500.0,0.00017099,2]
[403158770,1769215843646,-500.0,0.00017099,2]
[403158771,1769215843655,-500.0,0.00017099,2]
[403158772,1769215843665,-500.0,0.00017099,2]
[403158773,1769215843674,-500.0,0.00017099,2]
[403158774,1769215843683,-500.0,0.00017099,2]
[403158775,1769215843692,-847.23276109,0.00017105,2]
[403158776,1769215843701,-252.0,0.00017172,2]
[403158777,1769215843710,-182.48947764,0.00017193,2]
[403158778,1769215843719,-1000.0,0.00017207,2]
[403158779,1769215843728,-252.0,0.00017252,2]
[403158780,1769215843737,-252.0,0.00017277,2]
[403158781,1769215843747,-252.0,0.00017278,2]
[403158782,1769215843756,-316.25,0.00017295,2]
[403158783,1769215843765,-252.0,0.00017302,2]
[403158784,1769215843775,-233.41,0.00017313,2]
[403158785,1769215843784,-10130.07641326,0.0001732,2]
[403158786,1769215843794,-252.0,0.0001737,2]
[403158787,1769215843803,-252.0,0.00017416,2]
[403158788,1769215843813,-252.0,0.00017433,2]
[403158789,1769215843822,-176.1,0.00017457,2]
[403158790,1769215843831,-222.57709506,0.00017465,2]
[403158791,1769215843841,-252.0,0.00017467,2]
[403158792,1769215843850,-1000.0,0.00017481,2]
[403158793,1769215843860,-252.0,0.00017514,2]
[403158794,1769215843869,-295.0,0.00017516,2]
[403158795,1769215843879,-252.0,0.00017573,2]
[403158796,1769215843888,-10130.07641326,0.0001761,2]
[403158797,1769215843897,-208.03774045,0.0001764,2]
[403158798,1769215843907,-264.96816924,0.00017643,2]
[403158799,1769215843916,-358.5087,0.00017643,2]
[403158800,1769215843925,-181.08010149,0.00017647,2]
[403158801,1769215843935,-885.86649465,0.00017647,2]
[403158802,1769215843944,-217.15233878,0.00017647,2]
[403158803,1769215843953,-158.36147008,0.00017673,2]
[403158804,1769215843963,-1000.0,0.000177,2]
[403158805,1769215843973,-295.0,0.00017718,2]
[403158806,1769215843982,-1751.30830591,0.0001773,2]
[403158807,1769215843991,-1000.0,0.00017755,2]
[403158808,1769215844001,-186.19,0.00017757,2]
[403158809,1769215844010,-1000.0,0.00017772,2]
[403158810,1769215844019,-1000.0,0.00017792,2]
[403158811,1769215844030,-1000.0,0.00017798,2]
[403158812,1769215844040,-214.20333215,0.00017804,2]
[403158813,1769215844049,-150.0,0.00017808,2]
[403158814,1769215844058,-1969.0,0.00017808,2]
[403158815,1769215844067,-1000.0,0.00017811,2]
[403158816,1769215844077,-353.08534,0.0001782,2]
[403158817,1769215844087,-353.08534,0.0001782,2]
[403158818,1769215844096,-353.08534,0.0001782,2]
[403158819,1769215844107,-353.08534,0.0001782,2]
[403158820,1769215844116,-152.37337985,0.0001782,2]
[403158821,1769215844126,-6645.66140582,0.0001783,2]
[403158822,1769215844135,-1000.0,0.00017832,2]
[403158823,1769215844144,-1000.0,0.00017832,2]
[403158824,1769215844154,-1000.0,0.00017846,2]
[403158825,1769215844164,-200.0,0.00017856,2]
[403158826,1769215844174,-1000.0,0.00017862,2]
[403158827,1769215844188,-150.0,0.00017863,2]
[403158828,1769215844198,-1000.0,0.00017865,2]
[403158829,1769215844207,-1000.0,0.0001788,2]
[403158830,1769215844219,-222.57709506,0.000179,2]
[403158831,1769215844228,-1000.0,0.000179,2]
[403158832,1769215844238,-10130.07641326,0.000179,2]
[403158833,1769215844250,-2108.0,0.000179,2]
[403158834,1769215844262,-150.0,0.00017918,2]
[403158835,1769215844271,-200.0,0.00017918,2]
[403158836,1769215844280,-1000.0,0.00017925,2]
[403158837,1769215844290,-500.0,0.0001797,2]
[403158838,1769215844299,-150.0,0.00017972,2]
[403158839,1769215844308,-150.0,0.00017973,2]
[403158840,1769215844318,-150.0,0.00017973,2]
[403158841,1769215844328,-1000.0,0.00017973,2]
[403158842,1769215844337,-1000.0,0.00017973,2]
[403158843,1769215844347,-1000.0,0.00017975,2]
[403158844,1769215844356,-809.80690528,0.00017982,2]
[403158845,1769215844367,-944.5527982,0.00017993,2]
[403158846,1769215844377,-1412.4945118,0.00017993,2]
[403158847,1769215844386,-3519.1998685,0.00017993,2]
[403158848,1769215844398,-248.78771965,0.00017999,2]
[403158849,1769215844409,-4099.2018147,0.00017999,2]
[403158850,1769215844418,-96337.0252183,0.00017999,2]
[403158851,1769215844428,-300.0,0.00017999,2]
[403158852,1769215844438,-300.0,0.00017999,2]
[403158853,1769215844447,-2450911.06673064,0.00018,2]
[403158854,1769215844457,-600.0,0.00018,2]
[403158855,1769215844466,-242.59143286,0.00018,2]
[403158856,1769215844477,-150.0,0.00018,2]
[403158857,1769215844487,-3181.8052028,0.00018,2]
[403158858,1769215844497,-151.0,0.00018,2]
[403158859,1769215844508,-3577894.86041159,0.00018,2]
[403158860,1769215844523,-386.49005528,0.00018,2]
[403158861,1769215844533,-1219.4810845,0.00018,2]
[403158865,1769215845408,-557.96001026,0.00018,2]
[403158866,1769215845420,-18817.53595143,0.00018,2]
[403158867,1769215845454,-13634.60820723,0.00018,2]
[403158868,1769215845470,-4441.23959371,0.00018,2]
[403158869,1769215845549,-19.38778736,0.00018,2]
[403158870,1769215845562,-2511.8867267,0.00018,2]
[403158871,1769215845573,-490737.8830455,0.00018,2]
[403158872,1769215845585,-1821.82014999,0.00018,2]
[403158873,1769215845601,-344.63499176,0.00018,2]
[403158874,1769215845612,-424.00898094,0.00018,2]
[403158876,1769215846309,-286722.89465549,0.00018,2]
[403158877,1769215846344,-404.73403491,0.00018,2]
[403158878,1769215846355,-3554.57757357,0.00018,2]
[403158879,1769215846366,-579.67372848,0.00018,2]
[403158880,1769215846382,-521.50544742,0.00018,2]
[403158881,1769215846419,-1587.635991,0.00018,2]
[403158882,1769215846430,-2186.39951613,0.00018,2]
[403158883,1769216296440,-454.1716,0.00014341,2]
[403158884,1769216296466,-162.96462613,0.00014713,2]
[403158885,1769216460512,26905.18847856,0.000226,120]
[403158892,1769216657898,1000.0,0.00012999,2]
[403158895,1769216671051,1000.0,0.00012999,2]
[403158905,1769216880873,-177.21446126,0.00014661,2]
[403158906,1769216880895,-35.0563109,0.00014661,2]
[403158907,1769216883012,-167.47450196,0.00014661,2]
[403158908,1769216883034,-31.5546721,0.00014661,2]
[403158909,1769216956149,-732.12055295,0.0001452,2]
[403158910,1769216957494,-240.68893856,0.0001452,2]
[403158911,1769216960831,-407.689429,0.0001452,2]
[403158912,1769216964794,-244.04452484,0.0001452,2]
[403158913,1769216966756,-166.66,0.0001452,2]
[403158914,1769216969077,-182.59685887,0.0001452,2]
[403158915,1769216973026,-367.40314113,0.0001452,2]
[403158916,1769216974125,-3133.03655465,0.0001452,2]
[403158917,1769216974146,-284.5832686,0.00014661,2]
[403158918,1769216974166,-419.5685,0.00014988,2]
[403158919,1769216974185,-1200.0,0.00014999,2]
[403158920,1769216974204,-288.67734075,0.00014999,2]
[403158921,1769216985939,-273.0,0.00014505,2]
[403158922,1769216989219,-165.57403326,0.00014505,2]
[403158923,1769216992004,-423.79,0.00014505,2]
[403158924,1769216993531,-206.53,0.00014481,2]
[403158925,1769216993554,-51.68596674,0.00014505,2]
[403158926,1769216996260,-200.0,0.00014505,2]
[403158927,1769216998396,-166.66,0.00014505,2]
[403158930,1769217002210,-292.74515794,0.00014505,2]
[403158931,1769217004490,-228.01290191,0.00014505,2]
[403158932,1769217006081,-41.98709809,0.00014505,2]
[403158933,1769217006105,-235.68056376,0.00014505,2]
[403158950,1769217031475,-145.89191441,0.00014505,2]
[403158951,1769217031485,-204.41926906,0.00014661,2]
[403158952,1769217031494,-233.62202178,0.00014661,2]
[403158953,1769217031503,-48.57920846,0.00014661,2]
[403158954,1769217031658,-316.09016616,0.00014661,2]
[403158955,1769217031666,-1000000.0,0.00014984,2]
[403158956,1769217031675,-534.32265925,0.00014999,2]
[403158957,1769217031684,-300.0,0.00014999,2]
[403158958,1769217031694,-1200.0,0.00014999,2]
[403158959,1769217031703,-15340.83007156,0.00015,2]
[403158960,1769217031714,-151.0,0.00015079,2]
[403158961,1769217031723,-151.0,0.00015079,2]
[403158962,1769217031732,-151.0,0.00015079,2]
[403158963,1769217031741,-151.0,0.00015079,2]
[403158964,1769217031750,-151.0,0.00015079,2]
[403158965,1769217031759,-151.0,0.00015079,2]
[403158966,1769217031769,-151.0,0.00015079,2]
[403158967,1769217031777,-286.0113752,0.00015079,2]
[403158968,1769217031787,-182.48947764,0.00015082,2]
[403158969,1769217031795,-300.0,0.00015082,2]
[403158970,1769217031804,-523.48068702,0.00015083,2]
[403158971,1769217031813,-500.0,0.00015083,2]
[403158972,1769217031823,-500.0,0.00015083,2]
[403158974,1769217031833,-500.0,0.00015083,2]
[403158975,1769217031842,-500.0,0.00015083,2]
[403158977,1769217031851,-500.0,0.00015083,2]
[403158979,1769217031860,-500.0,0.00015083,2]
[403158980,1769217031869,-500.0,0.00015083,2]
[403158981,1769217031878,-500.0,0.00015083,2]
[403158982,1769217031887,-500.0,0.00015083,2]
[403158983,1769217031896,-500.0,0.00015083,2]
[403158984,1769217031906,-500.0,0.00015083,2]
[403158985,1769217031915,-500.0,0.00015083,2]
[403158986,1769217031924,-500.0,0.00015083,2]
[403158987,1769217031933,-500.0,0.00015083,2]
[403158988,1769217031943,-500.0,0.00015083,2]
[403158989,1769217031952,-500.0,0.00015083,2]
[403158990,1769217031961,-500.0,0.00015083,2]
[403158991,1769217031971,-500.0,0.00015083,2]
[403158993,1769217031980,-500.0,0.00015083,2]
[403158995,1769217031989,-500.0,0.00015083,2]
[403158997,1769217031998,-500.0,0.00015083,2]
[403158999,1769217032007,-500.0,0.00015083,2]
[403159001,1769217032016,-500.0,0.00015083,2]
[403159003,1769217032024,-500.0,0.00015083,2]
[403159005,1769217032033,-500.0,0.00015083,2]
[403159007,1769217032042,-500.0,0.00015083,2]
[403159009,1769217032051,-500.0,0.00015083,2]
[403159011,1769217032060,-500.0,0.00015083,2]
[403159013,1769217032069,-500.0,0.00015083,2]
[403159015,1769217032078,-500.0,0.00015083,2]
[403159017,1769217032087,-500.0,0.00015083,2]
[403159019,1769217032096,-500.0,0.00015083,2]
[403159021,1769217032105,-500.0,0.00015083,2]
[403159023,1769217032114,-500.0,0.00015083,2]
[403159025,1769217032122,-500.0,0.00015083,2]
[403159027,1769217032131,-500.0,0.00015083,2]
[403159029,1769217032140,-425.32780481,0.00015083,2]
[403159031,1769217032151,-500.0,0.00015083,2]
[403159033,1769217032161,-500.0,0.00015083,2]
[403159035,1769217032170,-500.0,0.00015083,2]
[403159037,1769217032179,-500.0,0.00015083,2]
[403159039,1769217032188,-500.0,0.00015083,2]
[403159041,1769217032196,-500.0,0.00015083,2]
[403159043,1769217032205,-500.0,0.00015083,2]
[403159045,1769217032215,-500.0,0.00015083,2]
[403159047,1769217032223,-500.0,0.00015083,2]
[403159049,1769217032232,-500.0,0.00015083,2]
[403159051,1769217032241,-500.0,0.00015083,2]
[403159053,1769217032250,-500.0,0.00015083,2]
[403159055,1769217032258,-500.0,0.00015083,2]
[403159056,1769217032268,-500.0,0.00015083,2]
[403159059,1769217032277,-500.0,0.00015083,2]
[403159061,1769217032286,-200.0,0.00015083,2]
[403159063,1769217032295,-500.0,0.00015083,2]
[403159065,1769217032304,-500.0,0.00015083,2]
[403159080,1769217032584,-500.0,0.00015083,2]
[403159084,1769217032612,-454.541645,0.00015083,2]
[403159086,1769217032621,-1224.88,0.00015085,2]
[403159088,1769217032630,-500.0,0.00015086,2]
[403159090,1769217032640,-459.95446308,0.00015087,2]
[403159091,1769217032652,-211.0551067,0.00015087,2]
[403159092,1769217032661,-542.90868018,0.00015087,2]
[403159093,1769217032670,-500.0,0.00015087,2]
[403159094,1769217032680,-382.65031338,0.00015087,2]
[403159095,1769217032690,-500.0,0.00015087,2]
[403159096,1769217032700,-500.0,0.00015087,2]
[403159097,1769217032709,-164.11360711,0.00015087,2]
[403159098,1769217032720,-402.3822763,0.00015087,2]
[403159099,1769217032729,-545.74415025,0.00015087,2]
[403159100,1769217032738,-500.0,0.00015087,2]
[403159101,1769217032747,-500.0,0.00015087,2]
[403159102,1769217032756,-166.93282131,0.00015087,2]
[403159103,1769217032766,-500.0,0.00015087,2]
[403159104,1769217032776,-500.0,0.00015087,2]
[403159105,1769217032785,-500.0,0.00015087,2]
[403159106,1769217032794,-500.0,0.00015087,2]
[403159107,1769217032803,-500.0,0.00015087,2]
[403159108,1769217032812,-500.0,0.00015087,2]
[403159109,1769217032821,-500.0,0.00015087,2]
[403159110,1769217032830,-4353.53913564,0.00015087,2]
[403159111,1769217032839,-235.2460749,0.00015087,2]
[403159112,1769217032848,-500.0,0.00015087,2]
[403159113,1769217032858,-500.0,0.00015087,2]
[403159114,1769217032867,-500.0,0.00015087,2]
[403159115,1769217032877,-155.26686864,0.00015087,2]
[403159116,1769217032886,-150.99,0.00015088,2]
[403159117,1769217032895,-2440.98,0.00015088,2]
[403159118,1769217032904,-299.99,0.00015088,2]
[403159119,1769217032913,-206.13,0.00015088,2]
[403159120,1769217032923,-9999.99,0.00015088,2]
[403159121,1769217032932,-1000.0,0.00015088,2]
[403159122,1769217032941,-22217.4679,0.00015088,2]
[403159123,1769217032950,-4107.1071,0.00015088,2]
[403159124,1769217032959,-500.0,0.00015187,2]
[403159125,1769217032968,-500.0,0.00015187,3]
[403159126,1769217032976,-500.0,0.00015187,4]
[403159127,1769217032985,-500.0,0.00015187,5]
[403159128,1769217032995,-214.58135512,0.0001522,2]
[403159129,1769217033004,-1224.88,0.00015359,2]
[403159130,1769217033015,-500.0,0.0001536,2]
[403159131,1769217033024,-302.41974858,0.00015387,2]
[403159132,1769217033033,-4353.5391356,0.000154,2]
[403159133,1769217033043,-151.0,0.00015504,2]
[403159134,1769217033051,-417.48232737,0.00015533,2]
[403159135,1769217033061,-1063.49,0.00015559,2]